[Event "Live Chess"]
[Site "Chess.com"]
[Date "2023.05.21"]
[Round "-"]
[White "Tushinskiy"]
[Black "profpirate4"]
[Result "1-0"]
[WhiteElo "2188"]
[BlackElo "1253"]
[TimeControl "300"]
[EndTime "23:41:53 PDT"]
[Termination "Tushinskiy won by resignation"]

1. d4 {[%clk 0:04:56.8]} 1... f5 {[%clk 0:04:58.7]} 2. c3 {[%clk 0:04:56.7]}
2... e6 {[%clk 0:04:57.9]} 3. Nf3 {[%clk 0:04:56.6]} 3... Nf6 {[%clk 0:04:57.1]}
4. Bf4 {[%clk 0:04:56.5]} 4... Be7 {[%clk 0:04:56.6]} 5. Bg3 {[%clk 0:04:56.4]}
5... O-O {[%clk 0:04:55.9]} 6. e3 {[%clk 0:04:55.5]} 6... d6 {[%clk 0:04:54.5]}
7. Bd3 {[%clk 0:04:54.8]} 7... e5 {[%clk 0:04:50.5]} 8. dxe5 {[%clk 0:04:53.4]}
8... dxe5 {[%clk 0:04:49.4]} 9. Nxe5 {[%clk 0:04:53.3]} 9... Nc6 {[%clk
0:04:46.1]} 10. Nxc6 {[%clk 0:04:42.4]} 10... bxc6 {[%clk 0:04:44.8]} 11. Qc2
{[%clk 0:04:40.4]} 11... Ne4 {[%clk 0:04:41.1]} 12. Nd2 {[%clk 0:04:36.6]} 12...
Nxg3 {[%clk 0:04:38.4]} 13. hxg3 {[%clk 0:04:36.5]} 13... Bf6 {[%clk 0:04:36.4]}
14. Nf3 {[%clk 0:04:33.9]} 14... Qe7 {[%clk 0:04:28]} 15. O-O {[%clk 0:04:28]}
15... Bb7 {[%clk 0:04:09.6]} 16. Bxf5 {[%clk 0:04:17]} 1-0

[Event "Live Chess"]
[Site "Chess.com"]
[Date "2023.05.21"]
[Round "-"]
[White "HoarseyHorsey"]
[Black "peter-785"]
[Result "1-0"]
[WhiteElo "1434"]
[BlackElo "1209"]
[TimeControl "300"]
[EndTime "23:41:55 PDT"]
[Termination "HoarseyHorsey won by resignation"]

1. d4 {[%clk 0:04:58.5]} 1... d5 {[%clk 0:04:57.9]} 2. c4 {[%clk 0:04:56.9]}
2... c6 {[%clk 0:04:57.4]} 3. cxd5 {[%clk 0:04:55.8]} 3... cxd5 {[%clk
0:04:54.2]} 4. Bf4 {[%clk 0:04:54.4]} 4... e6 {[%clk 0:04:53.2]} 5. e3 {[%clk
0:04:52.3]} 5... Nf6 {[%clk 0:04:52.6]} 6. Nf3 {[%clk 0:04:49.8]} 6... Be7
{[%clk 0:04:43]} 7. Nc3 {[%clk 0:04:31.8]} 7... a6 {[%clk 0:04:35.1]} 8. Bd3
{[%clk 0:04:30.1]} 8... O-O {[%clk 0:04:29.5]} 9. O-O {[%clk 0:04:27.6]} 9... b5
{[%clk 0:04:23.9]} 10. Rc1 {[%clk 0:04:18.1]} 10... Bb7 {[%clk 0:04:21.5]} 11.
Ne2 {[%clk 0:04:12.3]} 11... Nc6 {[%clk 0:04:13.8]} 12. a3 {[%clk 0:04:07.3]}
12... Rc8 {[%clk 0:04:08.5]} 13. b4 {[%clk 0:03:59.8]} 13... Re8 {[%clk
0:04:02.2]} 14. Qd2 {[%clk 0:03:55.2]} 14... Bf8 {[%clk 0:03:54.8]} 15. Rc2
{[%clk 0:03:49.3]} 15... Ne7 {[%clk 0:03:51.2]} 16. Rfc1 {[%clk 0:03:47.1]}
16... Rxc2 {[%clk 0:03:49.5]} 17. Rxc2 {[%clk 0:03:47]} 17... Ne4 {[%clk
0:03:35]} 18. Bxe4 {[%clk 0:03:39.8]} 18... dxe4 {[%clk 0:03:31.9]} 19. Ne5
{[%clk 0:03:37.1]} 19... Ng6 {[%clk 0:03:18.9]} 20. Nxg6 {[%clk 0:03:35.5]}
20... hxg6 {[%clk 0:03:17.6]} 21. Ng3 {[%clk 0:03:09.5]} 21... Bd6 {[%clk
0:03:08.5]} 22. Bxd6 {[%clk 0:03:01.5]} 22... Qxd6 {[%clk 0:03:07.4]} 23. Rc5
{[%clk 0:02:59]} 23... f6 {[%clk 0:02:49]} 24. Qc2 {[%clk 0:02:51.3]} 24... Kf7
{[%clk 0:02:44.5]} 25. Nxe4 {[%clk 0:02:46.4]} 25... Bxe4 {[%clk 0:02:40]} 26.
Qxe4 {[%clk 0:02:44.6]} 26... Re7 {[%clk 0:02:31.9]} 27. Qc6 {[%clk 0:02:32]}
27... Qd8 {[%clk 0:01:56.8]} 28. Qxa6 {[%clk 0:02:25.3]} 28... Rc7 {[%clk
0:01:54.4]} 29. Qxb5 {[%clk 0:02:19.3]} 1-0

[Event "Live Chess"]
[Site "Chess.com"]
[Date "2023.05.21"]
[Round "-"]
[White "Long1968"]
[Black "AttackingSnowLeopard"]
[Result "0-1"]
[WhiteElo "1015"]
[BlackElo "2147"]
[TimeControl "300"]
[EndTime "23:42:11 PDT"]
[Termination "AttackingSnowLeopard won on time"]

1. e4 {[%clk 0:04:56.1]} 1... c6 {[%clk 0:04:59.3]} 2. d4 {[%clk 0:04:54]} 2...
d5 {[%clk 0:04:58.9]} 3. e5 {[%clk 0:04:50.3]} 3... c5 {[%clk 0:04:58.1]} 4. c3
{[%clk 0:04:47.4]} 4... Nc6 {[%clk 0:04:56.9]} 5. f4 {[%clk 0:04:36.7]} 5... h5
{[%clk 0:04:52.8]} 6. Nf3 {[%clk 0:04:32.1]} 6... Nh6 {[%clk 0:04:51.3]} 7. Be3
{[%clk 0:04:28.3]} 7... Nf5 {[%clk 0:04:44.1]} 8. Kf2 {[%clk 0:04:23.2]} 8...
Nxe3 {[%clk 0:04:41.9]} 9. Kxe3 {[%clk 0:04:19.4]} 9... cxd4+ {[%clk 0:04:41.4]}
10. cxd4 {[%clk 0:04:09.2]} 10... Bf5 {[%clk 0:04:40.1]} 11. Nbd2 {[%clk
0:03:56.3]} 11... e6 {[%clk 0:04:38.7]} 12. Nb3 {[%clk 0:03:51.2]} 12... a5
{[%clk 0:04:35.2]} 13. Bb5 {[%clk 0:03:40.8]} 13... a4 {[%clk 0:04:32.4]} 14.
Nbd2 {[%clk 0:03:07.4]} 14... Be7 {[%clk 0:04:29.3]} 15. Rc1 {[%clk 0:02:59.3]}
15... O-O {[%clk 0:04:27.7]} 16. Bxc6 {[%clk 0:02:53.6]} 16... bxc6 {[%clk
0:04:27.6]} 17. Rxc6 {[%clk 0:02:51.2]} 17... Qa5 {[%clk 0:04:26.9]} 18. Qc1
{[%clk 0:02:40.7]} 18... Qb5 {[%clk 0:04:23.1]} 19. Qc3 {[%clk 0:02:18.5]} 19...
Bb4 {[%clk 0:04:19.5]} 20. Qc1 {[%clk 0:01:36.3]} 20... Qd3+ {[%clk 0:04:18]}
21. Kf2 {[%clk 0:01:32.8]} 21... a3 {[%clk 0:04:17.6]} 22. b3 {[%clk 0:01:26.6]}
22... f6 {[%clk 0:04:05.6]} 23. Rd1 {[%clk 0:01:11.7]} 23... fxe5 {[%clk
0:04:01.3]} 24. Nc4 {[%clk 0:00:54.3]} 24... Qc2+ {[%clk 0:03:31.2]} 25. Qxc2
{[%clk 0:00:31.5]} 25... Bxc2 {[%clk 0:03:31.1]} 26. Rc1 {[%clk 0:00:22.7]}
26... dxc4 {[%clk 0:03:27.9]} 27. Rxc2 {[%clk 0:00:18.2]} 27... cxb3 {[%clk
0:03:27.1]} 28. axb3 {[%clk 0:00:16]} 28... a2 {[%clk 0:03:26.7]} 29. Rxa2
{[%clk 0:00:04.6]} 29... Rxa2+ {[%clk 0:03:26.6]} 0-1

[Event "Live Chess"]
[Site "Chess.com"]
[Date "2023.05.21"]
[Round "-"]
[White "LutherSullivan"]
[Black "Ian-Morley"]
[Result "1-0"]
[WhiteElo "2180"]
[BlackElo "1002"]
[TimeControl "300"]
[EndTime "23:42:29 PDT"]
[Termination "LutherSullivan won by resignation"]

1. e4 {[%clk 0:04:58]} 1... e5 {[%clk 0:04:58.5]} 2. Nf3 {[%clk 0:04:57.1]} 2...
Nc6 {[%clk 0:04:57.5]} 3. Bc4 {[%clk 0:04:52.1]} 3... Nf6 {[%clk 0:04:56.1]} 4.
d3 {[%clk 0:04:51.2]} 4... d5 {[%clk 0:04:54.5]} 5. exd5 {[%clk 0:04:49.3]} 5...
Na5 {[%clk 0:04:53.8]} 6. O-O {[%clk 0:04:26.3]} 6... Nxc4 {[%clk 0:04:49.5]} 7.
dxc4 {[%clk 0:04:25.1]} 7... c6 {[%clk 0:04:47.5]} 8. Nxe5 {[%clk 0:04:20.1]}
8... cxd5 {[%clk 0:04:44.5]} 9. cxd5 {[%clk 0:04:12.1]} 9... Nxd5 {[%clk
0:04:42.7]} 10. c4 {[%clk 0:04:06.3]} 10... Nb6 {[%clk 0:04:39.4]} 11. Qxd8+
{[%clk 0:03:58.3]} 11... Kxd8 {[%clk 0:04:38.4]} 12. Nxf7+ {[%clk 0:03:56.4]}
12... Kc7 {[%clk 0:04:36.1]} 13. Bf4+ {[%clk 0:03:52.8]} 13... Bd6 {[%clk
0:04:34.1]} 14. Bxd6+ {[%clk 0:03:51]} 14... Kc6 {[%clk 0:04:32.5]} 15. Nxh8
{[%clk 0:03:49.4]} 15... Kxd6 {[%clk 0:04:31.7]} 16. Nf7+ {[%clk 0:03:48.6]}
16... Kc6 {[%clk 0:04:30.2]} 17. Nc3 {[%clk 0:03:44.5]} 17... Bf5 {[%clk
0:04:28.7]} 18. g4 {[%clk 0:03:40.5]} 18... Bd3 {[%clk 0:04:26.9]} 19. Ne5+
{[%clk 0:03:39.1]} 1-0

[Event "Live Chess"]
[Site "Chess.com"]
[Date "2023.05.21"]
[Round "-"]
[White "LaupMiths"]
[Black "Rusty_Bridges"]
[Result "1-0"]
[WhiteElo "1812"]
[BlackElo "1491"]
[TimeControl "300"]
[EndTime "23:42:48 PDT"]
[Termination "LaupMiths won by resignation"]

1. e4 {[%clk 0:04:55.4]} 1... d6 {[%clk 0:04:58.4]} 2. d4 {[%clk 0:04:52.9]}
2... Nf6 {[%clk 0:04:56.3]} 3. Nc3 {[%clk 0:04:51]} 3... Nbd7 {[%clk 0:04:53.5]}
4. f4 {[%clk 0:04:49.6]} 4... e5 {[%clk 0:04:51.4]} 5. fxe5 {[%clk 0:04:48.3]}
5... dxe5 {[%clk 0:04:50.9]} 6. Nf3 {[%clk 0:04:46.7]} 6... exd4 {[%clk
0:04:49.2]} 7. Qxd4 {[%clk 0:04:44.9]} 7... Bc5 {[%clk 0:04:44.9]} 8. Qc4 {[%clk
0:04:34.9]} 8... O-O {[%clk 0:04:41.3]} 9. Bd2 {[%clk 0:04:32.9]} 9... Ng4
{[%clk 0:04:31.3]} 10. O-O-O {[%clk 0:04:30.7]} 10... Nf2 {[%clk 0:04:28.6]} 11.
Bd3 {[%clk 0:04:28.5]} 11... Nxd1 {[%clk 0:04:21.4]} 12. Rxd1 {[%clk 0:04:20.6]}
12... Bd6 {[%clk 0:04:14.6]} 13. Bg5 {[%clk 0:04:17.6]} 13... Qe8 {[%clk
0:04:10.2]} 14. h4 {[%clk 0:04:12.4]} 14... Ne5 {[%clk 0:04:08.4]} 15. Nxe5
{[%clk 0:04:10.3]} 15... Bxe5 {[%clk 0:04:06.9]} 16. h5 {[%clk 0:03:59]} 16...
Be6 {[%clk 0:04:01]} 17. Qc5 {[%clk 0:03:55]} 17... Bd6 {[%clk 0:03:46]} 18. Qf2
{[%clk 0:03:47]} 18... Bg4 {[%clk 0:03:42.7]} 19. Rh1 {[%clk 0:03:42.9]} 19...
h6 {[%clk 0:03:32.6]} 20. Bd2 {[%clk 0:03:29.6]} 20... Qe5 {[%clk 0:03:28.3]}
21. Nd5 {[%clk 0:03:07.1]} 21... Bxh5 {[%clk 0:03:17.3]} 22. g4 {[%clk
0:03:04.1]} 22... Bg6 {[%clk 0:03:13]} 23. Bf4 {[%clk 0:02:59]} 23... Qe6 {[%clk
0:02:55.4]} 24. Bxh6 {[%clk 0:02:54.1]} 24... gxh6 {[%clk 0:01:58.2]} 25. Qh2
{[%clk 0:02:50.2]} 25... Bh7 {[%clk 0:01:52.9]} 26. Qh4 {[%clk 0:02:32.9]} 26...
c6 {[%clk 0:01:48.4]} 27. Nf6+ {[%clk 0:02:30.5]} 27... Kh8 {[%clk 0:01:45.4]}
28. Qxh6 {[%clk 0:02:27.5]} 28... Bf4+ {[%clk 0:01:21]} 29. Qxf4 {[%clk
0:02:22]} 1-0

[Event "Live Chess"]
[Site "Chess.com"]
[Date "2023.05.21"]
[Round "-"]
[White "Mikhail_Golubev"]
[Black "CeladonFish"]
[Result "1-0"]
[WhiteElo "2492"]
[BlackElo "1074"]
[TimeControl "300"]
[EndTime "23:42:54 PDT"]
[Termination "Mikhail_Golubev won by resignation"]

1. e4 {[%clk 0:04:56.8]} 1... d6 {[%clk 0:04:58.8]} 2. d4 {[%clk 0:04:53.4]}
2... Nf6 {[%clk 0:04:58.1]} 3. f3 {[%clk 0:04:52.6]} 3... g6 {[%clk 0:04:56.7]}
4. c4 {[%clk 0:04:51.2]} 4... Bg7 {[%clk 0:04:55.9]} 5. Nc3 {[%clk 0:04:50.8]}
5... O-O {[%clk 0:04:53.7]} 6. Be3 {[%clk 0:04:47.5]} 6... Nbd7 {[%clk
0:04:47.9]} 7. Nh3 {[%clk 0:04:41.9]} 7... c5 {[%clk 0:04:46.6]} 8. d5 {[%clk
0:04:39.4]} 8... a6 {[%clk 0:04:42.7]} 9. Nf2 {[%clk 0:04:34.2]} 9... Qa5 {[%clk
0:04:41.7]} 10. a4 {[%clk 0:04:06.9]} 10... Nh5 {[%clk 0:04:25.7]} 11. Qc2
{[%clk 0:03:54]} 11... b5 {[%clk 0:04:19.9]} 12. cxb5 {[%clk 0:03:47.6]} 12...
axb5 {[%clk 0:04:18.6]} 13. Bxb5 {[%clk 0:03:46.3]} 13... Nb6 {[%clk 0:04:07]}
14. O-O {[%clk 0:03:42.3]} 14... Ba6 {[%clk 0:03:48.5]} 15. Bd2 {[%clk
0:03:28.6]} 15... Bxb5 {[%clk 0:03:45.8]} 16. Nxb5 {[%clk 0:03:21.1]} 16... Qa6
{[%clk 0:03:40]} 17. Nc7 {[%clk 0:03:19.9]} 17... Qc8 {[%clk 0:03:38.5]} 18.
Nxa8 {[%clk 0:03:18.5]} 18... Qxa8 {[%clk 0:03:38]} 19. a5 {[%clk 0:03:15.7]}
19... Nd7 {[%clk 0:03:33.1]} 20. Bc3 {[%clk 0:03:10]} 20... Bxc3 {[%clk
0:03:30.9]} 21. Qxc3 {[%clk 0:03:07.3]} 21... Nf4 {[%clk 0:03:28.7]} 22. Qd2
{[%clk 0:02:56.4]} 22... Rb8 {[%clk 0:03:21.1]} 23. Qxf4 {[%clk 0:02:53.7]} 1-0

[Event "Live Chess"]
[Site "Chess.com"]
[Date "2023.05.21"]
[Round "-"]
[White "Jo1ts"]
[Black "Supertromp"]
[Result "0-1"]
[WhiteElo "839"]
[BlackElo "2131"]
[TimeControl "300"]
[EndTime "23:42:59 PDT"]
[Termination "Supertromp won by checkmate"]

1. d4 {[%clk 0:04:55.6]} 1... Nf6 {[%clk 0:04:58.6]} 2. Bf4 {[%clk 0:04:53.3]}
2... g6 {[%clk 0:04:57.1]} 3. Nf3 {[%clk 0:04:51.6]} 3... Bg7 {[%clk 0:04:56]}
4. e3 {[%clk 0:04:49.9]} 4... O-O {[%clk 0:04:55.2]} 5. Nbd2 {[%clk 0:04:47.9]}
5... d6 {[%clk 0:04:54.7]} 6. c3 {[%clk 0:04:39]} 6... Nbd7 {[%clk 0:04:54]} 7.
h3 {[%clk 0:04:30.6]} 7... Re8 {[%clk 0:04:53.1]} 8. Bh2 {[%clk 0:04:27.5]} 8...
b6 {[%clk 0:04:50.4]} 9. Bb5 {[%clk 0:04:23.8]} 9... Bb7 {[%clk 0:04:48.2]} 10.
Qe2 {[%clk 0:04:09.2]} 10... e5 {[%clk 0:04:45.5]} 11. dxe5 {[%clk 0:03:53.7]}
11... dxe5 {[%clk 0:04:45.4]} 12. Nxe5 {[%clk 0:03:48.5]} 12... Nxe5 {[%clk
0:04:43.9]} 13. Bxe8 {[%clk 0:03:47.6]} 13... Qxe8 {[%clk 0:04:43.8]} 14. Bxe5
{[%clk 0:03:39.8]} 14... Qxe5 {[%clk 0:04:43.7]} 15. Nf3 {[%clk 0:03:38.3]}
15... Qh5 {[%clk 0:04:37.2]} 16. O-O-O {[%clk 0:03:27]} 16... Qa5 {[%clk
0:04:25.6]} 17. Kb1 {[%clk 0:03:22.8]} 17... Ne4 {[%clk 0:04:22.1]} 18. Qd3
{[%clk 0:03:09.3]} 18... Nxf2 {[%clk 0:04:20.1]} 19. Qd7 {[%clk 0:03:02.1]}
19... Be4+ {[%clk 0:04:14.1]} 20. Ka1 {[%clk 0:02:56.3]} 20... Nxh1 {[%clk
0:03:41.6]} 21. Rxh1 {[%clk 0:02:52.1]} 21... Qxc3 {[%clk 0:03:38.9]} 22. bxc3
{[%clk 0:02:45.9]} 22... Bxc3# {[%clk 0:03:38.8]} 0-1

[Event "Live Chess"]
[Site "Chess.com"]
[Date "2023.05.21"]
[Round "-"]
[White "febray_27"]
[Black "Mugzwang"]
[Result "1-0"]
[WhiteElo "2002"]
[BlackElo "1565"]
[TimeControl "300"]
[EndTime "23:43:23 PDT"]
[Termination "febray_27 won by resignation"]

1. Nf3 {[%clk 0:04:58.2]} 1... d5 {[%clk 0:04:57.1]} 2. d4 {[%clk 0:04:57.2]}
2... Nf6 {[%clk 0:04:54.2]} 3. g3 {[%clk 0:04:56.3]} 3... c6 {[%clk 0:04:44.3]}
4. Bg2 {[%clk 0:04:55.4]} 4... Bg4 {[%clk 0:04:42.5]} 5. O-O {[%clk 0:04:54.6]}
5... Nbd7 {[%clk 0:04:37.7]} 6. c4 {[%clk 0:04:52.7]} 6... e6 {[%clk 0:04:33.8]}
7. Nc3 {[%clk 0:04:51.2]} 7... Be7 {[%clk 0:04:28.2]} 8. b3 {[%clk 0:04:45.4]}
8... O-O {[%clk 0:04:27.1]} 9. a4 {[%clk 0:04:43.7]} 9... a5 {[%clk 0:04:22.2]}
10. Bb2 {[%clk 0:04:42.3]} 10... Qc7 {[%clk 0:03:54.2]} 11. Rc1 {[%clk
0:04:34.1]} 11... Rac8 {[%clk 0:03:45.7]} 12. cxd5 {[%clk 0:04:31.4]} 12... exd5
{[%clk 0:03:36.9]} 13. Qd3 {[%clk 0:04:00.3]} 13... Qd8 {[%clk 0:03:29.4]} 14.
h3 {[%clk 0:03:48.7]} 14... Bxf3 {[%clk 0:03:23]} 15. Bxf3 {[%clk 0:03:44.6]}
15... Bd6 {[%clk 0:03:12.9]} 16. e4 {[%clk 0:03:38]} 16... dxe4 {[%clk
0:03:06.4]} 17. Nxe4 {[%clk 0:03:36.2]} 17... Nxe4 {[%clk 0:02:38.2]} 18. Bxe4
{[%clk 0:03:31.5]} 18... Nf6 {[%clk 0:02:36.3]} 19. Bg2 {[%clk 0:03:10.1]} 19...
Qd7 {[%clk 0:02:09.4]} 20. Rfd1 {[%clk 0:03:06.1]} 20... Rfd8 {[%clk 0:02:02.5]}
21. d5 {[%clk 0:02:40.1]} 21... Nxd5 {[%clk 0:01:51.7]} 22. Bxd5 {[%clk
0:02:34.6]} 22... cxd5 {[%clk 0:01:47]} 23. Rxc8 {[%clk 0:02:30]} 23... Qxc8
{[%clk 0:01:23.4]} 24. Qxd5 {[%clk 0:02:02.9]} 24... Qxh3 {[%clk 0:01:16.6]} 25.
Qe5 {[%clk 0:01:15.7]} 25... Qh6 {[%clk 0:00:59.5]} 26. Qxa5 {[%clk 0:00:39.3]}
26... Qg5 {[%clk 0:00:11.7]} 1-0

[Event "Live Chess"]
[Site "Chess.com"]
[Date "2023.05.21"]
[Round "-"]
[White "Biranidun"]
[Black "Singapourfeuj"]
[Result "1-0"]
[WhiteElo "2563"]
[BlackElo "2212"]
[TimeControl "300"]
[EndTime "23:43:23 PDT"]
[Termination "Biranidun won by resignation"]

1. e4 {[%clk 0:04:59]} 1... c5 {[%clk 0:04:58.7]} 2. Nf3 {[%clk 0:04:58]} 2...
d6 {[%clk 0:04:55]} 3. d4 {[%clk 0:04:57.6]} 3... cxd4 {[%clk 0:04:54.4]} 4.
Nxd4 {[%clk 0:04:57.5]} 4... Nf6 {[%clk 0:04:53.5]} 5. Nc3 {[%clk 0:04:57.1]}
5... a6 {[%clk 0:04:52.5]} 6. Be3 {[%clk 0:04:56.7]} 6... e5 {[%clk 0:04:51.2]}
7. Nb3 {[%clk 0:04:56.1]} 7... Be7 {[%clk 0:04:50.2]} 8. f3 {[%clk 0:04:55.7]}
8... Be6 {[%clk 0:04:49.3]} 9. Qd2 {[%clk 0:04:55.3]} 9... h5 {[%clk 0:04:47.3]}
10. Nd5 {[%clk 0:04:53.5]} 10... Bxd5 {[%clk 0:04:43.6]} 11. exd5 {[%clk
0:04:53.4]} 11... Nbd7 {[%clk 0:04:42.7]} 12. Be2 {[%clk 0:04:52.1]} 12... Nb6
{[%clk 0:04:41.1]} 13. c4 {[%clk 0:04:49.3]} 13... Rc8 {[%clk 0:04:39.5]} 14.
Na5 {[%clk 0:04:48]} 14... Qc7 {[%clk 0:04:37.2]} 15. O-O {[%clk 0:04:40.7]}
15... h4 {[%clk 0:04:34.8]} 16. b4 {[%clk 0:04:38.7]} 16... h3 {[%clk
0:04:32.5]} 17. g3 {[%clk 0:04:36.9]} 17... Nbd7 {[%clk 0:04:28.8]} 18. Rac1
{[%clk 0:04:34.2]} 18... Qb8 {[%clk 0:04:27.3]} 19. Rfd1 {[%clk 0:04:27.8]}
19... O-O {[%clk 0:04:25.7]} 20. Bf1 {[%clk 0:04:26.1]} 20... e4 {[%clk
0:04:20.1]} 21. f4 {[%clk 0:04:25.2]} 21... Ng4 {[%clk 0:04:13.6]} 22. Bxh3
{[%clk 0:04:24.2]} 22... Nxe3 {[%clk 0:04:12.5]} 23. Qxe3 {[%clk 0:04:23.6]}
23... f5 {[%clk 0:04:11.6]} 24. c5 {[%clk 0:04:09.3]} 24... dxc5 {[%clk
0:04:09.4]} 25. d6 {[%clk 0:04:08.3]} 25... Bxd6 {[%clk 0:04:05.3]} 26. Nc4
{[%clk 0:04:05.6]} 26... Rf6 {[%clk 0:04:01.1]} 27. Nxd6 {[%clk 0:03:54]} 27...
Rxd6 {[%clk 0:03:59.5]} 28. Bxf5 {[%clk 0:03:52.6]} 28... Rd8 {[%clk 0:03:29.3]}
29. bxc5 {[%clk 0:03:51.1]} 29... Rxd1+ {[%clk 0:03:26.9]} 30. Rxd1 {[%clk
0:03:51]} 30... Nf6 {[%clk 0:03:25.2]} 31. Rxd8+ {[%clk 0:03:29.5]} 31... Qxd8
{[%clk 0:03:24.1]} 32. Bxe4 {[%clk 0:03:29]} 32... Qd1+ {[%clk 0:03:19.4]} 33.
Kg2 {[%clk 0:03:28.3]} 33... Ng4 {[%clk 0:03:13.7]} 34. Qb3+ {[%clk 0:03:24.1]}
34... Qxb3 {[%clk 0:03:12.2]} 35. axb3 {[%clk 0:03:24]} 35... a5 {[%clk
0:03:04.4]} 36. Bxb7 {[%clk 0:03:22.3]} 36... Ne3+ {[%clk 0:03:03.2]} 37. Kf3
{[%clk 0:03:21.2]} 37... Nc2 {[%clk 0:03:01.6]} 38. Ke4 {[%clk 0:03:15.5]} 38...
Kf7 {[%clk 0:02:58.2]} 39. c6 {[%clk 0:03:14.1]} 39... Ke7 {[%clk 0:02:57.2]}
40. c7 {[%clk 0:03:13.3]} 1-0

[Event "Live Chess"]
[Site "Chess.com"]
[Date "2023.05.21"]
[Round "-"]
[White "MaximKris"]
[Black "matt1979"]
[Result "1-0"]
[WhiteElo "1838"]
[BlackElo "1521"]
[TimeControl "300"]
[EndTime "23:43:30 PDT"]
[Termination "MaximKris won by checkmate"]

1. e4 {[%clk 0:04:58.8]} 1... d6 {[%clk 0:04:57]} 2. d4 {[%clk 0:04:57]} 2...
Nf6 {[%clk 0:04:55.6]} 3. Nc3 {[%clk 0:04:55.7]} 3... e5 {[%clk 0:04:53.5]} 4.
dxe5 {[%clk 0:04:54.1]} 4... dxe5 {[%clk 0:04:51.7]} 5. Qxd8+ {[%clk 0:04:54]}
5... Kxd8 {[%clk 0:04:50.3]} 6. Nf3 {[%clk 0:04:53.9]} 6... Bd6 {[%clk
0:04:43.7]} 7. Bg5 {[%clk 0:04:53.1]} 7... Be6 {[%clk 0:04:41.2]} 8. O-O-O
{[%clk 0:04:52]} 8... Nd7 {[%clk 0:04:39.5]} 9. Nd5 {[%clk 0:04:49.2]} 9... h6
{[%clk 0:04:25.9]} 10. Nxf6 {[%clk 0:04:47.6]} 10... gxf6 {[%clk 0:04:21.1]} 11.
Be3 {[%clk 0:04:46.6]} 11... Ke7 {[%clk 0:04:14.1]} 12. a3 {[%clk 0:04:32.2]}
12... Nc5 {[%clk 0:04:05.1]} 13. Bxc5 {[%clk 0:03:55.6]} 13... Bxc5 {[%clk
0:04:03.3]} 14. Rd2 {[%clk 0:03:35.3]} 14... Rad8 {[%clk 0:04:00.8]} 15. Bd3
{[%clk 0:03:32.1]} 15... Bg4 {[%clk 0:03:52.7]} 16. Rhd1 {[%clk 0:03:18.2]}
16... Rd6 {[%clk 0:03:40.1]} 17. c4 {[%clk 0:03:18.1]} 17... a6 {[%clk 0:03:36]}
18. b4 {[%clk 0:03:16.5]} 18... Ba7 {[%clk 0:03:34.4]} 19. c5 {[%clk 0:03:11.6]}
19... Rd7 {[%clk 0:03:28.8]} 20. Bc4 {[%clk 0:03:03.9]} 20... Rxd2 {[%clk
0:03:26.4]} 21. Rxd2 {[%clk 0:03:03.8]} 21... Be6 {[%clk 0:03:21]} 22. Bxe6
{[%clk 0:03:01.7]} 22... fxe6 {[%clk 0:03:19.4]} 23. Nh4 {[%clk 0:02:55.4]}
23... Rg8 {[%clk 0:03:16.2]} 24. g3 {[%clk 0:02:52.3]} 24... b6 {[%clk
0:03:08.2]} 25. c6 {[%clk 0:02:08.9]} 25... Rd8 {[%clk 0:03:00.3]} 26. Ng6+
{[%clk 0:02:05.1]} 26... Ke8 {[%clk 0:02:57.7]} 27. Rxd8+ {[%clk 0:02:05]} 27...
Kxd8 {[%clk 0:02:56.9]} 28. Kc2 {[%clk 0:01:53.3]} 28... b5 {[%clk 0:02:49.1]}
29. f4 {[%clk 0:01:50.8]} 29... exf4 {[%clk 0:02:43.1]} 30. gxf4 {[%clk
0:01:50.7]} 30... Ke8 {[%clk 0:02:36.6]} 31. h4 {[%clk 0:01:44.8]} 31... Kf7
{[%clk 0:02:33]} 32. h5 {[%clk 0:01:44.7]} 32... Bf2 {[%clk 0:02:23.5]} 33. e5
{[%clk 0:01:01.5]} 33... f5 {[%clk 0:02:12.1]} 34. Kb3 {[%clk 0:00:53.8]} 34...
Be3 {[%clk 0:02:05.8]} 35. a4 {[%clk 0:00:51.5]} 35... bxa4+ {[%clk 0:01:43.4]}
36. Kxa4 {[%clk 0:00:51.4]} 36... Bb6 {[%clk 0:01:40.9]} 37. b5 {[%clk
0:00:40.6]} 37... a5 {[%clk 0:01:38.6]} 38. Kb3 {[%clk 0:00:38.6]} 38... Kg7
{[%clk 0:01:30.8]} 39. Ne7 {[%clk 0:00:34.6]} 39... Kf7 {[%clk 0:01:27]} 40. Nc8
{[%clk 0:00:33.7]} 40... Ke8 {[%clk 0:01:23.1]} 41. Kc4 {[%clk 0:00:23.2]} 41...
Kd8 {[%clk 0:01:19.7]} 42. Nd6 {[%clk 0:00:18]} 42... cxd6 {[%clk 0:01:17.4]}
43. exd6 {[%clk 0:00:17.9]} 43... a4 {[%clk 0:01:10.2]} 44. Kb4 {[%clk
0:00:16.9]} 44... e5 {[%clk 0:01:04.9]} 45. fxe5 {[%clk 0:00:15.4]} 45... f4
{[%clk 0:01:03.8]} 46. e6 {[%clk 0:00:14.8]} 46... f3 {[%clk 0:01:01.3]} 47. c7+
{[%clk 0:00:11.8]} 47... Bxc7 {[%clk 0:00:56.5]} 48. e7+ {[%clk 0:00:10.6]}
48... Kd7 {[%clk 0:00:51.3]} 49. dxc7 {[%clk 0:00:09.7]} 49... f2 {[%clk
0:00:47.2]} 50. c8=Q+ {[%clk 0:00:09.2]} 50... Kxe7 {[%clk 0:00:43.6]} 51. Qf5
{[%clk 0:00:07.8]} 51... Kd6 {[%clk 0:00:42]} 52. Qxf2 {[%clk 0:00:05.5]} 52...
a3 {[%clk 0:00:40.9]} 53. Qa2 {[%clk 0:00:04.9]} 53... Ke5 {[%clk 0:00:38.1]}
54. Qxa3 {[%clk 0:00:04.8]} 54... Kf5 {[%clk 0:00:34.2]} 55. Qa6 {[%clk
0:00:04.7]} 55... Ke5 {[%clk 0:00:32.8]} 56. Kc5 {[%clk 0:00:04.6]} 56... Ke4
{[%clk 0:00:31.5]} 57. b6 {[%clk 0:00:04.5]} 57... Ke5 {[%clk 0:00:30.3]} 58. b7
{[%clk 0:00:04.4]} 58... Ke4 {[%clk 0:00:28.7]} 59. b8=Q {[%clk 0:00:04.3]}
59... Ke3 {[%clk 0:00:26.3]} 60. Qbd6 {[%clk 0:00:04.2]} 60... Ke4 {[%clk
0:00:24.9]} 61. Qa1 {[%clk 0:00:04.1]} 61... Ke3 {[%clk 0:00:23.8]} 62. Qe1+
{[%clk 0:00:04]} 62... Kf3 {[%clk 0:00:20.9]} 63. Qf6+ {[%clk 0:00:03.9]} 63...
Kg4 {[%clk 0:00:18.6]} 64. Qeh4# {[%clk 0:00:03.8]} 1-0